[Event "German Bundesliga 2022-23"]
[Site "Germany"]
[Date "2022.11.26"]
[Round "3.1"]
[White "Esipenko, Andrey"]
[Black "Nisipeanu, Liviu-Dieter"]
[Result "1/2-1/2"]
[ECO "B45"]
[WhiteElo "2680"]
[BlackElo "2615"]
[Annotator "TA"]
[PlyCount "85"]
[EventDate "2022.10.21"]
[EventType "team-tourn"]
[EventCountry "GER"]
[SourceTitle "playchess.com"]
[Source "ChessBase"]
[SourceQuality "1"]
[TimeControl "40/6000+30:3000+30"]

{[%evp 12,85,7,16,16,10,7,7,32,45,56,30,32,30,27,7,25,8,8,14,29,45,62,0,0,8,16,8,13,12,12,0,0,0,0,-4,0,0,49,50,51,46,137,144,162,153,152,136,160,155,147,147,129,132,134,141,138,33,97,0,0,0,0,0,0,0,0,0,0,0,0,0,0,0,0,0]} 1. e4 {[%emt 0:00:06]} c5 {[%emt 0:00:06]} 2. Nf3 {[%emt 0:00:32]} e6 {[%emt 0:00:06]} 3. d4 {[%emt 0:00:32]} cxd4 {[%emt 0:00:06]} 4. Nxd4 {[%emt 0:00:05]} Nf6 {[%emt 0:00:06]} 5. Nc3 {[%emt 0:00:20]} Nc6 {[%emt 0:00:05]} 6. a3 {[%emt 0:00:33]} d6 {[%emt 0:01:52]} 7. Be3 {[%emt 0:00:44]} Be7 {[%emt 0:01:42] B45: Sicilian Four Knights.} 8. f3 {[%emt 0:00:25]} O-O {[%emt 0:01:01]} 9. Qd2 {[%emt 0:00:26]} a6 {[%emt 0:08:02]} 10. O-O-O {[%emt 0:03:49]} Nxd4 {[%emt 0:01:13]} 11. Bxd4 {[%emt 0:00:59]} b5 {[%emt 0:00:29]} 12. g4 {[%emt 0:04:35][%cal Bg2g4,Bg4g5][%mdl 32]} Nd7 {[%emt 0:04:43] Inhibits h4.} 13. f4 {[%emt 0:02:43][%cal Oh2h4]} Bb7 {[%emt 0:16:16] [#] Inhibits h4.} 14. g5 $146 {[%emt 0:04:37]} ({Predecessor:} 14. Kb1 Rc8 15. h4 Nc5 16. Qe1 Qc7 17. Qe2 e5 18. fxe5 dxe5 19. Bxc5 Qxc5 20. Nd5 Rfd8 21. Bg2 Bc6 22. g5 a5 23. Bh3 Rb8 24. Rhf1 {½-½ (24) Fuzishawa,R (2231)-Alfredo (2460) ICCF email 2009}) 14... e5 {[%emt 0:31:52] Against h4} 15. Be3 {[%emt 0:00:55]} exf4 {[%emt 0:00:16]} 16. Bxf4 {[%emt 0:00:10]} Nc5 {[%emt 0:00:07]} 17. Nd5 {[%emt 0:28:21]} (17. Qe3 $1 $14) 17... Nxe4 $11 {[%emt 0:00:53]} 18. Qe3 {[%emt 0:01:11]} Bxd5 {[%emt 0:20:27]} (18... Nxg5 $2 19. Nxe7+ Kh8 20. Bxg5 $1 $18) 19. Rxd5 {[%emt 0:00:14]} f5 {[%emt 0:00:04][%cal Re7g5]} 20. h4 {[%emt 0:08:00][%mdl 1024] White has compensation.} Qd7 {[%emt 0:03:15]} 21. Bh3 {[%emt 0:10:19]} Qe6 {[%emt 0:01:16]} 22. Rhd1 {[%emt 0:00:30]} Rac8 {[%emt 0:00:30]} 23. Qb6 {[%emt 0:08:04]} Nc5 {[%emt 0:04:58]} 24. Kb1 {[%emt 0:04:48]} Qe4 {[%emt 0:01:51] Against Bg2} (24... Qe2 $1 $11 25. R5d2 Qe4 26. Bxd6 Rc6) 25. Bxd6 $14 {[%emt 0:05:05]} (25. R5d4 Qf3 26. Re1 Qf2 $17) 25... Bxd6 {[%emt 0:02:54]} 26. Qxd6 {[%emt 0:01:25]} Ne6 {[%emt 0:03:47]} (26... Qf3 $14) 27. Qe5 $16 {[%emt 0:08:47] Strongly threatening Qxe4.} Qxc2+ {[%emt 0:02:31]} (27... Rxc2 28. Qxe4 Nc7 29. Rxf5 Rb8 30. Kxc2 h6 31. Qe7) 28. Ka1 {[%emt 0:00:43]} Nc5 {[%emt 0:02:11] Hoping for ...Nb3+.} 29. Bxf5 {[%emt 0:00:15]} Rxf5 {[%emt 0:01:33]} 30. Rd8+ $1 {[%emt 0:09:27]} ({Stronger than} 30. Qxf5 Nb3+ 31. Ka2 Nc1+ 32. Ka1 Nb3+ 33. Ka2 Nc1+ 34. Ka1 Nb3+ $11) 30... Rf8 {[%emt 0:00:05]} 31. Qd5+ {[%emt 0:00:15]} Kh8 {[%emt 0:00:24]} 32. Rxc8 {[%emt 0:00:09][%cal Rc8f8] Chess con chili.} Nb3+ {[%emt 0:00:02] [#]} (32... Rxc8 $2 33. Qd8+ $3 {[%mdl 512]} Rxd8 34. Rxd8#) 33. Qxb3 $3 {[%emt 0:00:12][%cal Rc8f8][%mdl 512]} Qxc8 {[%emt 0:00:03][%mdl 4096] Endgame [#] KQR-KQR} 34. Qb4 {[%emt 0:01:28] Prevents Qg4.} ({White should try} 34. Rd6 $1 $16) 34... Kg8 {[%emt 0:00:15] [#]} (34... g6 $14) 35. h5 {[%emt 0:02:55] White is more active.} ({Better is} 35. Rd6 $1 $16) 35... Qh3 $36 {[%emt 0:00:57][%mdl 2048] White is under pressure. The position is equal.} 36. h6 {[%emt 0:00:57]} gxh6 {[%emt 0:00:48]} 37. Qd6 {[%emt 0:00:23]} Rf1 {[%emt 0:01:15]} (37... hxg5 38. Qd5+ Kh8 39. Qe5+ Kg8 40. Qxg5+ Kf7 41. Qf4+ Ke7 42. Re1+) 38. Qd5+ {[%emt 0:01:33]} (38. Qxh6 {gets mated.} Rxd1+ 39. Ka2 Qf5 40. Qh2 Qd5+ 41. b3 Qxg5 42. Qc2 Rd2 43. Kb1 Qg1+ 44. Qc1 Rd1) 38... Kf8 {[%emt 0:00:22] White must now prevent ...hxg5.} 39. Qa8+ {[%emt 0:01:42]} Kf7 {[%emt 0:00:26]} 40. Qb7+ {[%emt 0:00:31]} Kf8 {[%emt 0:00:28]} 41. Qa8+ {[%emt 0:51:13]} Kf7 {[%emt 0:50:24]} 42. Qb7+ {[%emt 0:00:55]} Kf8 {[%emt 0:01:18]} 43. Qa8+ {[%emt 0:00:00] Blacks defense is rewarded with a draw.   Weighted Error Value: White=0.11 (very precise) /Black=0.07 (flawless)} 1/2-1/2

[Event "German Bundesliga 2022-23"]
[Site "Germany"]
[Date "2022.11.26"]
[Round "3.2"]
[White "Bluebaum, Matthias"]
[Black "Duda, Jan-Krzysztof"]
[Result "1/2-1/2"]
[ECO "D10"]
[WhiteElo "2647"]
[BlackElo "2731"]
[Annotator "TA"]
[PlyCount "43"]
[EventDate "2022.10.21"]
[EventType "team-tourn"]
[EventCountry "GER"]
[SourceTitle "playchess.com"]
[Source "ChessBase"]
[SourceQuality "1"]
[TimeControl "40/6000+30:3000+30"]

{[%evp 10,43,15,21,10,0,21,4,0,0,0,0,25,10,3,12,11,16,11,5,7,3,14,0,0,0,0,0,0,0,0,0,0,0,8,8]} 1. d4 {[%emt 0:00:03]} d5 {[%emt 0:13:05]} 2. c4 {[%emt 0:00:32]} c6 {[%emt 0:00:07]} 3. Nc3 {[%emt 0:01:18]} Nf6 {[%emt 0:00:31]} 4. e3 {[%emt 0:01:01]} e6 {[%emt 0:00:21]} 5. b3 {[%emt 0:00:44]} Bb4 {[%emt 0:06:47]} 6. Bb2 {[%emt 0:00:32]} Ne4 {[%emt 0:02:20] D31: Queen's Gambit Declined: Semi-Slav without ...Nf6 (+ Marshall Gambit and Noteboom) and Exchange Variation lines without ...Nf6.} 7. Qc2 {[%emt 0:01:08]} O-O {[%emt 0:06:20][%cal Oe6e5]} (7... e5 $5) 8. Bd3 {[%emt 0:07:33] Prevents e5.} Bxc3+ {[%emt 0:08:02]} 9. Bxc3 {[%emt 0:00:19]} Nxc3 {[%emt 0:00:05]} 10. Qxc3 {[%emt 0:00:08]} Nd7 {[%emt 0:01:55]} 11. Nf3 {[%emt 0:04:35]} dxc4 {[%emt 0:06:30] [#] The position is equal.} 12. Bxc4 $146 {[%emt 0:06:08]} ({Predecessor:} 12. bxc4 c5 13. O-O b6 14. d5 Bb7 15. Rad1 Qe7 16. e4 e5 17. a4 a5 18. g3 {1-0 (64) Aczel,G (2478)-Nguyen,H (2490) Hungary 2015}) 12... b6 {[%emt 0:01:45]} 13. O-O {[%emt 0:07:04]} Bb7 {[%emt 0:00:49]} 14. b4 {[%emt 0:06:14]} a5 {[%emt 0:06:31]} 15. a3 {[%emt 0:10:36]} c5 {[%emt 0:04:28]} 16. dxc5 {[%emt 0:09:31]} axb4 {[%emt 0:01:12]} 17. axb4 {[%emt 0:04:22][%cal Oc4e6]} bxc5 {[%emt 0:00:13]} 18. Be2 {[%emt 0:06:53]} Rxa1 {[%emt 0:01:19]} 19. Rxa1 {[%emt 0:00:12]} cxb4 {[%emt 0:00:06]} 20. Qxb4 {[%emt 0:00:03]} Bxf3 {[%emt 0:00:07]} 21. Bxf3 {[%emt 0:00:03]} Qb6 {[%emt 0:00:21]} 22. Qxb6 {An interesting draw.   Weighted Error Value: White=0.05 (flawless) /Black=0.03 (flawless)} 1/2-1/2

[Event "German Bundesliga 2022-23"]
[Site "Germany"]
[Date "2022.11.26"]
[Round "3.2"]
[White "Areshchenko, Alexander"]
[Black "Keymer, Vincent"]
[Result "1/2-1/2"]
[ECO "C89"]
[WhiteElo "2632"]
[BlackElo "2698"]
[Annotator "TA"]
[PlyCount "45"]
[EventDate "2022.10.21"]
[EventType "team-tourn"]
[EventCountry "GER"]
[SourceTitle "playchess.com"]
[Source "ChessBase"]
[SourceQuality "1"]
[TimeControl "40/6000+30:3000+30"]

{[%evp 26,45,39,14,31,33,34,33,37,32,41,41,42,43,45,36,40,42,45,7,12,7]} 1. e4 {[%emt 0:00:03]} e5 {[%emt 0:00:04]} 2. Nf3 {[%emt 0:00:15]} Nc6 {[%emt 0:00:04]} 3. Bb5 {[%emt 0:00:05]} a6 {[%emt 0:00:03]} 4. Ba4 {[%emt 0:00:04]} Nf6 {[%emt 0:00:04]} 5. O-O {[%emt 0:00:43]} Be7 {[%emt 0:00:04]} 6. Re1 {[%emt 0:01:23]} b5 {[%emt 0:00:05]} 7. Bb3 {[%emt 0:00:04]} O-O {[%emt 0:00:04]} 8. c3 {[%emt 0:03:06]} d5 {[%emt 0:00:19]} 9. exd5 {[%emt 0:00:32]} Nxd5 {[%emt 0:00:06]} 10. Nxe5 {[%emt 0:00:33]} Nxe5 {[%emt 0:00:05]} 11. Rxe5 {[%emt 0:00:04]} c6 {[%emt 0:00:26]} 12. d3 {[%emt 0:01:57]} Bd6 {[%emt 0:00:58]} 13. Re1 {[%emt 0:00:15]} Bf5 {[%emt 0:09:18]} 14. Qf3 {[%emt 0:02:03]} Qh4 {[%emt 0:02:18] C89: Closed Ruy Lopez: Marshall Attack.} 15. g3 {[%emt 0:01:26]} ({But not} 15. Bxd5 Bxh2+ 16. Kf1 Bg4 $15) 15... Qh3 {[%emt 0:00:25]} 16. Be3 {[%emt 0:06:55]} Bxd3 {[%emt 0:08:46] White is slightly better.} 17. Nd2 {[%emt 0:03:03]} Bf5 $1 {[%emt 0:04:57][%mdl 4] is recently more successful than 17...Qf5.} 18. Bxd5 {[%emt 0:04:45]} cxd5 {[%emt 0:00:28]} 19. Qxd5 {[%emt 0:01:04]} Rfd8 {[%emt 0:06:12][%cal Od6g3] [#]} 20. Qf3 $146 {[%emt 0:19:08]} ({Predecessor:} 20. Qg2 Qxg2+ 21. Kxg2 b4 22. Bd4 bxc3 23. Bxc3 Be6 24. f3 a5 25. a3 a4 26. Ne4 {½-½ (36) Karjakin,S (2743)-Caruana,F (2792) Baku 2021}) 20... Bg4 {[%emt 0:10:28]} 21. Qg2 {[%emt 0:00:47]} b4 {[%emt 0:02:45]} 22. f3 {[%emt 0:16:52]} bxc3 {[%emt 0:09:51]} 23. fxg4 {[%emt 0:23:29] Weighted Error Value: White=0.05 (flawless) /Black=0.04 (flawless)} 1/2-1/2

[Event "German Bundesliga 2022-23"]
[Site "Germany"]
[Date "2022.11.26"]
[Round "3.3"]
[White "Adams, Michael"]
[Black "Edouard, Romain"]
[Result "1-0"]
[ECO "B66"]
[WhiteElo "2686"]
[BlackElo "2548"]
[Annotator "TA"]
[PlyCount "79"]
[EventDate "2022.10.21"]
[EventType "team-tourn"]
[EventCountry "GER"]
[SourceTitle "playchess.com"]
[Source "ChessBase"]
[SourceQuality "1"]
[TimeControl "40/6000+30:3000+30"]

{[%evp 21,79,52,52,56,52,34,37,35,64,62,74,64,85,79,68,79,86,80,102,111,138,143,148,134,146,108,233,237,244,245,218,222,319,316,622,354,379,291,314,306,313,307,306,291,305,305,305,298,275,283,274,269,272,0,214,0,272,276,244,261]} 1. e4 {[%emt 0:00:03]} c5 {[%emt 0:00:02]} 2. Nf3 {[%emt 0:00:10]} d6 {[%emt 0:00:05]} 3. d4 {[%emt 0:00:06]} cxd4 {[%emt 0:00:04]} 4. Nxd4 {[%emt 0:00:04]} Nf6 {[%emt 0:00:05]} 5. Nc3 {[%emt 0:00:06]} Nc6 {[%emt 0:00:40]} 6. Bg5 {[%emt 0:00:08]} e6 {[%emt 0:00:06]} 7. Qd2 {[%emt 0:00:24]} a6 {[%emt 0:01:17]} 8. O-O-O {[%emt 0:00:12]} Nxd4 {[%emt 0:01:21]} 9. Qxd4 {[%emt 0:00:11]} Be7 {[%emt 0:00:08]} 10. f4 {[%emt 0:04:10]} b5 {[%emt 0:03:27]} 11. Bxf6 {[%emt 0:05:05]} gxf6 {[%emt 0:00:14]} 12. Kb1 {[%emt 0:07:32][%cal Of4f5] B66: Sicilian: Richter-Rauzer: 7...a6 8 0-0-0 h6.} (12. f5 {is more complex.} Qa5 13. Kb1 b4 14. Ne2) 12... Qc7 {[%emt 0:01:41]} 13. Be2 {[%emt 0:01:20][%cal Of4f5]} (13. f5 {keeps more tension.} Qc5 14. Qd2 Bb7 15. Bd3) 13... Qc5 {[%emt 0:02:02]} 14. Qd2 {[%emt 0:06:30][%cal Of4f5] White is slightly better.} Bb7 {[%emt 0:01:03] Prevents f5.} 15. Bf3 {[%emt 0:00:08]} O-O-O {[%emt 0:00:35]} 16. Rhe1 {[%emt 0:01:30]} Kb8 {[%emt 0:00:47] [#]} 17. f5 $146 {[%emt 0:05:50]} ({Predecessor:} 17. a3 h5 18. Re3 Rc8 19. Ne2 h4 20. Nd4 Qb6 21. Nb3 Ba8 22. Qe1 Rc7 23. Rdd3 {1-0 (44) Brodsky,M (2545)-Poluljahov,A (2510) Koszalin 1997}) 17... h5 {[%emt 0:01:17]} 18. h4 {[%emt 0:01:29]} Bf8 {[%emt 0:06:01]} 19. Qd3 {[%emt 0:07:06]} b4 {[%emt 0:06:01]} 20. Ne2 {[%emt 0:02:39]} Bh6 {[%emt 0:11:10]} 21. fxe6 {[%emt 0:10:41]} fxe6 {[%emt 0:00:06]} 22. Nd4 {[%emt 0:00:12]} Rhe8 {[%emt 0:15:39]} 23. Qb3 {[%emt 0:07:38]} d5 {[%emt 0:01:26]} (23... Rc8 $16 {might work better.}) 24. exd5 $18 {[%emt 0:10:33]} (24. Bxh5 Re7 25. Bg4 Rd6) 24... Bxd5 {[%emt 0:00:10]} 25. Bxd5 {[%emt 0:03:35]} (25. Nxe6 Rxe6 26. Rxe6 Bxb3 $14) 25... Rxd5 {[%emt 0:00:02] [#]} 26. c3 {[%emt 0:01:48]} (26. Rxe6 $2 Rxe6 27. c3 Red6 $19) (26. Qa4 Red8 27. c3 (27. Nxe6 $2 Rxd1+ 28. Rxd1 Rxd1#) 27... R8d6 28. cxb4 (28. Nxe6 $2 Rxd1+ 29. Rxd1 Rxd1+ 30. Qxd1 Qf5+ 31. Ka1 Qxe6 $19) (28. Rxe6 $2 Rxe6 29. Nxe6 Rxd1+ 30. Qxd1 Qf5+ 31. Ka1 Qxe6 $19) 28... Qc7 $14) 26... a5 {[%emt 0:01:58]} (26... Rd6 $142 27. cxb4 (27. Rxe6 $2 Rexe6 28. Nxe6 Rxd1+ 29. Qxd1 Qf5+ 30. Ka1 Qxe6 $19) 27... Qb6) 27. a3 {[%emt 0:08:29]} (27. Rxe6 $2 Rxe6 $19) 27... Bf8 $2 {[%emt 0:02:23]} (27... Rd6 28. Nc2 (28. Rxe6 $2 Rexe6 29. cxb4 axb4 $19) (28. cxb4 axb4 29. Nc2 Red8 $18) 28... Red8 29. Rxd6 (29. cxb4 $2 Rxd1+ 30. Ka2 a4 $19) 29... Rxd6 30. cxb4 (30. Rxe6 Rxe6 31. Qxe6 bxc3 $16) (30. axb4 axb4 31. Rf1 f5 $16) 30... Qb6) 28. Ka2 {[%emt 0:04:28]} (28. Rxe6 Rxe6 29. Nxe6 Rxd1+ 30. Qxd1 Qf5+ 31. Ka1 Qxe6 $11) 28... Qd6 {[%emt 0:13:47] [#]} 29. Nb5 $1 {[%emt 0:13:05][%mdl 512] Inhibits f5.} Qd7 {[%emt 0:01:13] Hoping for ...Rxd1.} 30. Rxd5 {[%emt 0:00:24]} (30. axb4 a4 31. Qxa4 Qxb5 32. Qxb5+ Rxb5 $17) 30... exd5 {[%emt 0:00:03]} 31. Rxe8+ {[%emt 0:00:16]} Qxe8 {[%emt 0:00:02]} 32. Qxd5 {[%emt 0:00:27][%mdl 4096] Endgame KQB-KQN} Qe5 {[%emt 0:01:52]} 33. Qd8+ {[%emt 0:04:13]} Kb7 {[%emt 0:00:01]} 34. Qd7+ {[%emt 0:01:44]} (34. Qxa5 Qe6+ 35. Kb1 Qe4+ 36. Ka2 Qe6+ 37. b3 Qe2+ 38. Kb1 Qf1+ 39. Kc2 Qe2+ 40. Kc1 Qf1+ 41. Kc2 Qe2+ 42. Kc1 Qf1+ 43. Kc2 $11) (34. Qxf8 b3+ 35. Kxb3 Qxb5+ 36. Kc2 Qe2+ 37. Kb3 Qb5+ 38. Kc2 Qe2+ 39. Kc1 Qe1+ 40. Kc2 Qe2+ $11) 34... Kb6 {[%emt 0:00:18] White must now prevent ...b3+.} 35. Nd4 {[%emt 0:02:00]} bxc3 {[%emt 0:01:40]} 36. Qc6+ {[%emt 0:00:49]} (36. bxc3 $6 Qc5 37. Kb1 f5 $18) 36... Ka7 {[%emt 0:00:01]} 37. Qd7+ {[%emt 0:00:23]} (37. bxc3 $6 Qc5 38. Qxf6 (38. Nb5+ Kb8 $18) 38... Qd5+ 39. Ka1 Bc5 $18) (37. Qxc3 Qd5+ 38. Nb3 a4 $16) 37... Kb6 {[%emt 0:00:44]} 38. Qc6+ {[%emt 0:00:39]} Ka7 {[%emt 0:00:01]} 39. Nb5+ {[%emt 0:01:59]} ({Resist} 39. bxc3 $6 Qc5 40. Nb5+ (40. Qxf6 Qd5+ 41. Ka1 Bc5 $18) 40... Kb8 41. Qe8+ (41. Qxf6 Qd5+ 42. c4 Qxc4+ 43. Ka1 Qc1+ 44. Ka2 Qd2+ 45. Kb1 Qd1+ 46. Kb2 Qd2+ 47. Kb3 Qd1+ 48. Kb2 Qe2+ 49. Kc1 Qe3+ 50. Kb2 Qe2+ 51. Kc1 Qe3+ 52. Kb2 Qe2+ $11) 41... Kb7 $18) ({Don't take} 39. Qxc3 $6 Qc5 40. Kb3 Kb6 41. Qxc5+ Bxc5 $18) (39. Qd7+ $6 Ka6 40. Qc6+ (40. bxc3 Qc5 $18) 40... Ka7 $18) 39... Kb8 {[%emt 0:00:01]} 40. Nxc3 {[%emt 0:00:53] Weighted Error Value: White=0.38/Black=0.35} 1-0

[Event "German Bundesliga 2022-23"]
[Site "Germany"]
[Date "2022.11.26"]
[Round "3.3"]
[White "Kryvoruchko, Yuriy"]
[Black "Kamsky, Gata"]
[Result "1/2-1/2"]
[ECO "C95"]
[WhiteElo "2649"]
[BlackElo "2666"]
[Annotator "TA"]
[PlyCount "58"]
[EventDate "2022.10.21"]
[EventType "team-tourn"]
[EventCountry "GER"]
[SourceTitle "playchess.com"]
[Source "ChessBase"]
[SourceQuality "1"]
[TimeControl "40/6000+30:3000+30"]

{[%evp 37,58,46,47,29,46,39,58,33,54,52,38,22,27,17,45,41,57,44,53,7,45,53,31]} 1. e4 {[%emt 0:09:12]} e5 {[%emt 0:00:58]} 2. Nf3 {[%emt 0:00:19]} Nc6 {[%emt 0:00:10]} 3. Bb5 {[%emt 0:00:13]} a6 {[%emt 0:00:09]} 4. Ba4 {[%emt 0:00:04]} Nf6 {[%emt 0:00:08]} 5. O-O {[%emt 0:00:16]} Be7 {[%emt 0:00:08]} 6. Re1 {[%emt 0:00:11]} b5 {[%emt 0:00:08]} 7. Bb3 {[%emt 0:00:05]} d6 {[%emt 0:00:07]} 8. c3 {[%emt 0:00:10]} O-O {[%emt 0:00:09]} 9. h3 {[%emt 0:00:12]} Nb8 {[%emt 0:00:08]} 10. d4 {[%emt 0:00:31]} Nbd7 {[%emt 0:00:08]} 11. Nbd2 {[%emt 0:00:48][%cal Bb1d2,Bd2f1,Bf1g3][%mdl 32]} Bb7 {[%emt 0:00:09]} 12. Bc2 {[%emt 0:00:42]} Re8 {[%emt 0:00:07]} 13. Nf1 {[%emt 0:01:00]} Bf8 {[%emt 0:00:08]} 14. Ng3 {[%emt 0:00:09]} g6 {[%emt 0:00:05]} 15. a4 {[%emt 0:00:54]} c5 {[%emt 0:04:58]} 16. d5 {[%emt 0:00:35]} c4 {[%emt 0:00:13]} 17. Bg5 {[%emt 0:01:20]} h6 {[%emt 0:02:38]} 18. Be3 {[%emt 0:00:10]} Nc5 {[%emt 0:13:40]} 19. Qd2 {[%emt 0:00:14]} Kh7 {[%emt 0:00:20]} 20. Nh2 {[%emt 0:11:49] C95: Closed Ruy Lopez: Breyer Variation with 10 d4.} Nfd7 {[%emt 0:13:25]} 21. Rf1 {[%emt 0:01:47]} Qh4 {[%emt 0:08:03] Against f4} 22. Ng4 {[%emt 0:08:22]} Bg7 {[%emt 0:05:40]} 23. Kh2 {[%emt 0:07:00]} Rf8 {[%emt 0:15:30] [#]} 24. axb5 $146 {[%emt 0:11:22]} ({Predecessor:} 24. f4 h5 25. Nf2 exf4 26. Bxf4 Be5 27. Nfh1 Qe7 28. axb5 axb5 29. Ne2 Bxf4+ 30. Qxf4 Bxd5 {0-1 (48) Bittencourt,J (2471)-Mecking,H (2556) Rio de Janeiro 2009}) 24... axb5 {[%emt 0:00:27]} 25. Rxa8 {[%emt 0:00:05]} Bxa8 {[%emt 0:00:29]} 26. Ra1 {[%emt 0:01:02]} Bb7 {[%emt 0:03:47]} 27. Ra5 {[%emt 0:07:03]} Ba6 {[%emt 0:00:32]} 28. Kg1 {[%emt 0:10:02]} (28. Ra3 $14 {is more appropriate.}) 28... Rb8 {[%emt 0:02:01]} (28... Qd8 $5 {[%cal Rd8a5]} 29. Ra1 h5 $11) 29. Ra3 {[%emt 0:02:17]} Bc8 {[%emt 0:01:57] Weighted Error Value: White=0.08 (flawless) /Black=0.11 (very precise)} 1/2-1/2

[Event "German Bundesliga 2022-23"]
[Site "Germany"]
[Date "2022.11.26"]
[Round "3.4"]
[White "Kollars, Dmitrij"]
[Black "Korobov, Anton"]
[Result "1/2-1/2"]
[ECO "B90"]
[WhiteElo "2611"]
[BlackElo "2659"]
[Annotator "TA"]
[PlyCount "73"]
[EventDate "2022.10.21"]
[EventType "team-tourn"]
[EventCountry "GER"]
[SourceTitle "playchess.com"]
[Source "ChessBase"]
[SourceQuality "1"]
[TimeControl "40/6000+30:3000+30"]

{[%evp 15,73,16,21,32,22,23,29,25,34,33,53,53,69,60,77,74,90,33,44,0,0,0,0,0,66,43,176,0,15,0,0,0,0,0,0,0,0,0,0,0,0,0,24,25,65,0,0,0,0,0,0,0,0,0,0,0,0,0,0,0]} 1. e4 {[%emt 0:00:04]} c5 {[%emt 0:00:07]} 2. Nf3 {[%emt 0:00:30]} d6 {[%emt 0:00:30]} 3. d4 {[%emt 0:00:30]} cxd4 {[%emt 0:00:30]} 4. Nxd4 {[%emt 0:00:30]} Nf6 {[%emt 0:00:30]} 5. Nc3 {[%emt 0:00:30]} a6 {[%emt 0:00:30]} 6. Be3 {[%emt 0:00:30]} e5 {[%emt 0:00:30]} 7. Nb3 {[%emt 0:00:30]} Be6 {[%emt 0:00:30]} 8. f3 {[%emt 0:00:30]} h5 {[%emt 0:00:30]} 9. Nd5 {[%emt 0:00:30] B90: Sicilian Najdorf: Unusual White 6th moves, 6 Be3 Ng4 and 6 Be3 e5.} Bxd5 {[%emt 0:00:30]} 10. exd5 {[%emt 0:00:30]} g6 {[%emt 0:00:30]} 11. Qd2 {[%emt 0:00:30] White has an edge.} Bg7 {[%emt 0:00:30]} 12. O-O-O {[%emt 0:00:30]} O-O {[%emt 0:00:30]} 13. Kb1 {[%emt 0:00:30]} e4 {[%emt 0:00:30]} 14. h3 {[%emt 0:00:30]} exf3 {[%emt 0:00:30]} 15. gxf3 {[%emt 0:00:30]} Nbd7 {[%emt 0:00:30] [#]} 16. Bd4 $146 {[%emt 0:00:30] White is more active.} (16. Rg1 $16) ({Predecessor:} 16. Rg1 Rc8 17. f4 Ne4 18. Qc1 Qh4 19. f5 Kh7 20. Nd4 Ndc5 21. Be2 Rce8 22. Bf3 {½-½ (35) Grobler,D (2279)-Torgersen,T (2263) ICCF email 2019}) 16... Re8 {[%emt 0:00:30]} 17. Bd3 {[%emt 0:00:30] This pair of bishops is nice.} Ne5 {[%emt 0:00:30]} 18. f4 {[%emt 0:00:30]} Nf3 {[%emt 0:00:30]} 19. Qg2 {[%emt 0:00:30]} Nxd4 {[%emt 0:00:30]} (19... Nh4 $1 $11 20. Qg1 Nf3) 20. Nxd4 $14 {[%emt 0:00:30]} Qa5 {[%emt 0:00:30] [#]} ({Black should play} 20... Nd7 $14 21. c3 Bxd4 22. cxd4 Qf6) 21. c4 $2 {[%emt 0:00:30]} (21. Bxg6 $1 $18 {[%mdl 512]} Qxd5 22. Nf3) 21... Qb6 $1 $11 {[%emt 0:00:30] [#]} (21... Nxd5 22. cxd5 Bxd4 23. f5 $14 (23. Bxg6 Bxb2 24. Qxb2 fxg6 $11)) 22. Nf5 {[%emt 0:00:30]} gxf5 {[%emt 0:00:30]} 23. Rhg1 $1 {[%emt 0:00:30][%csl Gg1][%cal Rg2g7] Inhibits h4.} ({Reject} 23. Rdg1 {[#]} Ng4 $1 24. Bxf5 Qf2 25. Qxf2 Nxf2 $19) 23... Ng4 $1 {[%emt 0:00:30][%cal Oe8e3] Hoping for ...Re3!} 24. Bxf5 {[%emt 0:00:30][%mdl 64] Pin} Re3 {[%emt 0:00:30]} 25. hxg4 {[%emt 0:00:30]} Rg3 {[%emt 0:00:30][%mdl 64]} 26. Qh2 {[%emt 0:00:30]} (26. Qxg3 $2 Qxb2#) 26... Rxg1 {[%emt 0:00:30]} 27. Rxg1 {[%emt 0:00:30][%cal Bd1g1,Bg1g4,Bg4c4][%mdl 32]} hxg4 {[%emt 0:00:30]} 28. Rxg4 {[%emt 0:00:30] Threatening mate with Qh7+.} Qd4 {[%emt 0:00:30][%cal Rd4d1]} 29. Qe2 {[%emt 0:00:30] Prevents Qd1+.} b5 {[%emt 0:00:30]} 30. Bd7 {[%emt 0:00:30]} ({White should try} 30. cxb5 $14 axb5 31. Bd3) 30... bxc4 {[%emt 0:00:30] aiming for ...Rb8. The position is equal.} 31. f5 $1 {[%emt 0:00:30][%csl LRc4,LRd4]} Qf6 {[%emt 0:00:30] And now ...Rb8 would win.} (31... Qxd5 $2 32. f6 Qd3+ 33. Qxd3 cxd3 34. Bf5 $18) 32. Rxc4 {[%emt 0:00:30]} Qd8 {[%emt 0:00:30]} 33. Ba4 {[%emt 0:00:30]} Rb8 {[%emt 0:00:30]} 34. Re4 {[%emt 0:00:30] Threatens to win with Re8+.} Rxb2+ {[%emt 0:00:30]} (34... Bxb2 $2 35. Re8+ $18 (35. Qxa6 $2 {loses.} Bg7+ 36. Bb3 Qf6 $19) (35. Qxa6 $2 {too greedy.} Bg7+ 36. Bb3 Qf6 $19)) 35. Qxb2 {[%emt 0:00:30]} Bxb2 {[%emt 0:00:30]} 36. Re8+ {[%emt 0:00:30]} Qxe8 $1 {[%emt 0:00:30]} 37. Bxe8 {[%emt 0:00:30] Weighted Error Value: White=0.19 (very precise) /Black=0.15 (very precise)} 1/2-1/2